bitfinex/quotes_SOLUSD_20220116
["timestamp","ask_amount","ask_price","bid_price","bid_amount"]
[1642361279258,11.99801346,148.48,148.38,108.1178]
[1642361279458,12.24801346,148.48,148.38,108.1178]
[1642361282967,18.24801346,148.48,148.38,108.1178]
[1642361283365,18.24801346,148.48,148.38,114.1178]
[1642361284868,18.24801346,148.48,148.38,108.1178]
[1642361285370,18.24801346,148.48,148.38,114.1178]
[1642361285596,18.24801346,148.48,148.38,108.1178]
[1642361285797,18.24801346,148.48,148.38,114.1178]
[1642361285999,18.24801346,148.48,148.38,108.1178]
[1642361287900,18.24801346,148.48,148.38,114.1178]
[1642361288605,8.14121346,148.48,148.38,114.1178]
[1642361289501,1.89121346,148.47,148.38,114.1178]
[1642361289704,1.89121346,148.47,148.38,108.1178]
[1642361289906,2.14121346,148.47,148.38,114.1178]
[1642361290100,1.89121346,148.47,148.38,114.1178]
[1642361290300,1.89121346,148.47,148.38,108.1178]
[1642361290502,1.89121346,148.47,148.38,114.1178]
[1642361291402,1.89121346,148.47,148.38,108.1178]
[1642361291805,1.89121346,148.47,148.38,114.1178]
[1642361292002,7.89121346,148.47,148.38,114.1178]
[1642361292202,1.89121346,148.47,148.38,114.1178]
[1642361293017,7.89121346,148.47,148.38,114.1178]
[1642361293205,1.89121346,148.47,148.38,108.1178]
[1642361294003,1.89121346,148.47,148.38,114.1178]
[1642361294205,1.89121346,148.47,148.38,108.1178]
[1642361295007,1.89121346,148.48,148.38,108.1178]
[1642361295407,2.14121346,148.48,148.38,108.1178]
[1642361295808,1.89121346,148.47,148.38,108.1178]
[1642361296610,2.14121346,148.48,148.38,108.1178]
[1642361296810,1.89121346,148.48,148.38,114.1178]
[1642361297008,2.14121346,148.48,148.38,108.1178]
[1642361297209,8.14121346,148.48,148.38,108.1178]
[1642361297611,1.89121346,148.47,148.38,108.1178]
[1642361298410,1.89121346,148.47,148.38,114.1178]
[1642361298812,1.89121346,148.47,148.38,108.1178]
[1642361299015,1.89121346,148.47,148.38,114.1178]
[1642361299615,1.89121346,148.47,148.38,115.31622713]
[1642361300015,1.89121346,148.47,148.38,117.2375451]
[1642361300915,1.89121346,148.48,148.38,117.2375451]
[1642361301315,7.89121346,148.48,148.39,0.26]
[1642361301519,1.89121346,148.48,148.41,10.1019]
[1642361301716,1.89121346,148.48,148.42,32.468]
[1642361301915,1.89121346,148.48,148.42,32.718]
[1642361302115,1.89121346,148.48,148.43,37.24330933]
[1642361302317,1.89121346,148.48,148.43,45.57330933]
[1642361302517,1.89121346,148.5,148.43,45.57330933]
[1642361302716,1.89121346,148.5,148.44,23.4957]
[1642361302916,1.89121346,148.5,148.44,23.7457]
[1642361304119,1.89121346,148.51,148.44,23.7457]
[1642361304322,2.14121346,148.51,148.44,23.7457]
[1642361304519,1.89121346,148.51,148.44,23.7457]
[1642361304720,2.14121346,148.51,148.44,23.7457]
[1642361305020,1.89121346,148.5,148.44,23.7457]
[1642361305820,1.89121346,148.51,148.44,23.7457]
[1642361308425,7.89121346,148.52,148.44,23.7457]
[1642361308727,1.89121346,148.52,148.44,23.7457]
[1642361309023,2.14121346,148.52,148.44,23.7457]
[1642361309227,8.14121346,148.52,148.44,23.7457]
[1642361309425,1.89121346,148.51,148.44,23.7457]
[1642361309823,2.14121346,148.51,148.44,23.7457]
[1642361310024,1.89121346,148.51,148.44,23.4957]
[1642361310225,1.89121346,148.51,148.44,23.7457]
[1642361311425,2.14121346,148.51,148.44,23.7457]
[1642361311625,2.14121346,148.51,148.44,23.4957]
[1642361312053,2.14121346,148.51,148.44,23.7457]
[1642361313756,1.89121346,148.51,148.44,23.7457]
[1642361314556,1.89121346,148.51,148.45,67.17]
[1642361314854,1.89121346,148.51,148.46,8.08]
[1642361315254,1.89121346,148.51,148.46,32.1436]
[1642361315454,27.89256305,148.53,148.46,32.1436]
[1642361315854,28.14256305,148.53,148.46,32.1436]
[1642361316055,34.14256305,148.53,148.46,32.1436]
[1642361318256,28.14256305,148.53,148.46,32.1436]
[1642361318658,34.14256305,148.53,148.46,31.8936]
[1642361318955,34.14256305,148.53,148.43,45.32330933]
[1642361319157,35.84333893,148.53,148.43,45.32330933]
[1642361319359,35.84333893,148.53,148.43,45.57330933]
[1642361319558,35.84333893,148.53,148.43,45.32330933]
[1642361319760,35.84333893,148.53,148.43,45.57330933]
[1642361320459,1.89121346,148.51,148.43,45.57330933]
[1642361320659,5.18666195,148.5,148.43,45.57330933]
[1642361320959,5.43666195,148.5,148.43,45.57330933]
[1642361321458,10.1058,148.49,148.43,45.57330933]
[1642361321660,10.1058,148.49,148.43,45.32330933]
[1642361321960,10.3558,148.49,148.43,45.32330933]
[1642361322958,10.3558,148.49,148.43,45.57330933]
[1642361323459,10.1058,148.49,148.43,45.32330933]
[1642361323663,10.3558,148.49,148.43,45.57330933]
[1642361323861,16.3558,148.49,148.43,45.57330933]
[1642361324363,16.3558,148.49,148.43,45.32330933]
[1642361325064,16.3558,148.49,148.43,8.08]
[1642361325464,18.24701346,148.49,148.43,8.08]
[1642361326065,18.24701346,148.49,148.43,57.72577623]
[1642361327269,18.24701346,148.49,148.43,8.08]
[1642361328069,18.24701346,148.49,148.39,31.8465]
[1642361328269,24.9048,148.48,148.4,39.19584801]
[1642361328470,25.1548,148.48,148.4,39.44584801]
[1642361329070,25.1548,148.48,148.41,8.08]
[1642361329474,25.1548,148.48,148.41,8.33]
[1642361330171,25.1548,148.48,148.41,0.25]
[1642361330672,27.04601346,148.48,148.4,39.44584801]
[1642361331171,27.04601346,148.48,148.4,47.52584801]
[1642361331972,33.04601346,148.48,148.4,47.52584801]
[1642361332172,31.1548,148.48,148.4,47.52584801]
[1642361341207,30.9048,148.48,148.4,47.52584801]
[1642361342507,31.1548,148.48,148.4,47.52584801]
[1642361346709,33.04601346,148.48,148.4,47.52584801]
[1642361348312,32.79601346,148.48,148.4,47.52584801]
[1642361355923,1.89121346,148.47,148.4,47.52584801]
[1642361360022,26.79601346,148.48,148.4,47.52584801]
[1642361360221,32.79601346,148.48,148.4,57.63004801]
[1642361362824,7.89121346,148.48,148.4,57.63004801]
[1642361363024,7.89121346,148.48,148.41,67.17]
[1642361363225,1.89121346,148.48,148.42,18.1827]
[1642361363423,1.89121346,148.48,148.42,19.64032431]
[1642361363824,1.89121346,148.48,148.42,85.6027]
[1642361364253,24.7607,148.53,148.42,85.6027]
[1642361364254,1.89121346,148.5,148.42,85.6027]
[1642361364423,1.89121346,148.5,148.42,86.81032431]
[1642361364823,1.89121346,148.5,148.42,85.6027]
[1642361365623,1.89121346,148.5,148.42,91.6027]
[1642361365823,7.89121346,148.5,148.42,85.6027]
[1642361366024,1.89121346,148.5,148.42,91.6027]
[1642361366229,7.89121346,148.5,148.42,91.6027]
[1642361366836,1.89121346,148.5,148.42,91.6027]
[1642361367026,7.89121346,148.5,148.42,91.6027]
[1642361367225,1.89121346,148.5,148.42,85.6027]
[1642361367928,1.89121346,148.5,148.42,91.6027]
[1642361368127,7.89121346,148.5,148.42,91.6027]
[1642361368328,6.0,148.5,148.42,85.6027]
[1642361368529,1.89121346,148.51,148.42,85.6027]
[1642361368732,7.89121346,148.51,148.42,85.6027]
[1642361369430,7.89121346,148.51,148.42,91.6027]
[1642361371432,6.0,148.51,148.42,91.6027]
[1642361371632,6.0,148.51,148.42,91.3527]
[1642361371859,1.89121346,148.52,148.42,85.3527]
[1642361372061,6.0,148.51,148.42,85.3527]
[1642361372258,2.14121346,148.52,148.42,91.3527]
[1642361372459,8.14121346,148.52,148.42,91.3527]
[1642361372660,2.14121346,148.52,148.42,91.3527]
[1642361373060,8.14121346,148.52,148.42,24.4327]
[1642361373359,24.3234,148.51,148.42,24.4327]
[1642361373659,26.21461346,148.51,148.42,24.4327]
[1642361373861,26.21461346,148.51,148.42,91.6027]
[1642361375260,26.21461346,148.51,148.42,18.1827]
[1642361375461,26.46461346,148.51,148.42,24.1827]
[1642361375660,26.21461346,148.51,148.42,24.1827]
[1642361376260,26.21461346,148.51,148.42,85.3527]
[1642361376463,26.21461346,148.51,148.42,18.1827]
[1642361376661,26.21461346,148.51,148.42,24.1827]
[1642361377061,26.21461346,148.51,148.42,24.4327]
[1642361379066,32.21461346,148.51,148.42,91.6027]
[1642361379265,32.21461346,148.51,148.43,23.7324]
[1642361379564,32.21461346,148.51,148.43,32.0624]
[1642361379971,7.89121346,148.51,148.43,109.3345]
[1642361380569,6.0,148.51,148.43,109.3345]
[1642361380771,6.0,148.51,148.43,115.3345]
[1642361380968,1.89121346,148.52,148.43,115.3345]
[1642361381169,2.14121346,148.52,148.43,115.3345]
[1642361381371,1.89121346,148.52,148.43,115.3345]
[1642361382670,7.89121346,148.52,148.43,115.3345]
[1642361383272,7.89121346,148.52,148.43,48.1645]
[1642361383470,7.89121346,148.52,148.43,32.0624]
[1642361383671,7.89121346,148.52,148.43,38.0624]
[1642361384273,8.14121346,148.52,148.43,33.26787483]
[1642361384473,18.24511346,148.52,148.43,39.26787483]
[1642361384671,18.24511346,148.52,148.43,38.0624]
[1642361384871,17.99511346,148.52,148.43,38.0624]
[1642361385071,17.99511346,148.52,148.43,33.26787483]
[1642361385272,17.99511346,148.52,148.43,32.0624]
[1642361386885,17.99511346,148.52,148.43,99.2324]
[1642361387379,7.89121346,148.52,148.43,99.2324]
[1642361388783,7.89121346,148.52,148.43,122.73317483]
[1642361388984,1.89121346,148.52,148.43,122.73317483]
[1642361390509,1.89121346,148.54,148.43,122.73317483]
[1642361391283,1.89121346,148.54,148.43,121.5277]
[1642361391485,1.89121346,148.53,148.43,121.5277]
[1642361391685,1.89121346,148.53,148.43,122.73317483]
[1642361392284,1.89121346,148.53,148.43,121.2777]
[1642361392485,7.89121346,148.53,148.43,115.2777]
[1642361392684,1.89121346,148.53,148.43,109.0847]
[1642361393184,7.89121346,148.53,148.43,110.29017483]
[1642361393784,7.89121346,148.53,148.43,110.54017483]
[1642361394885,7.89121346,148.53,148.43,109.3347]
[1642361395285,7.89121346,148.53,148.43,109.0847]
[1642361396388,7.89121346,148.53,148.43,115.0847]
[1642361396588,7.89121346,148.53,148.43,116.54017483]
[1642361397489,7.89121346,148.53,148.43,115.3347]
[1642361398489,14.79291607,148.56,148.45,66.0]
[1642361398490,3.52882862,148.56,148.45,66.0]
[1642361398690,3.52882862,148.56,148.49,67.17]
[1642361398890,3.52882862,148.56,148.5,8.08]
[1642361399292,3.52882862,148.56,148.51,43.74082652]
[1642361399693,3.52882862,148.56,148.51,43.99082652]
[1642361399893,3.52882862,148.56,148.51,54.08772652]
[1642361400095,27.30972862,148.59,148.51,121.25772652]
[1642361400295,27.30972862,148.59,148.51,54.08772652]
[1642361400495,27.55972862,148.59,148.51,54.08772652]
[1642361401195,27.30972862,148.59,148.51,54.08772652]
[1642361401396,23.7809,148.59,148.52,34.9697]
[1642361401597,3.52882862,148.61,148.52,43.0497]
[1642361401795,3.52882862,148.61,148.52,43.2997]
[1642361402596,23.75644212,148.63,148.52,43.2997]
[1642361402895,1.13644212,148.63,148.55,67.17]
[1642361403097,7.13644212,148.63,148.54,49.05474311]
[1642361403296,1.13644212,148.63,148.55,23.3356]
[1642361403497,7.13644212,148.63,148.55,23.3356]
[1642361403697,1.13644212,148.63,148.55,23.5856]
[1642361406627,6.0,148.63,148.55,30.1146]
[1642361406826,6.0,148.63,148.55,40.2084]
[1642361407027,3.52882862,148.67,148.56,67.17]
[1642361407232,28.11142862,148.67,148.57,22.8951]
[1642361407426,28.11142862,148.67,148.57,23.1451]
[1642361407626,28.11142862,148.67,148.58,112.94654149]
[1642361407826,30.5826,148.67,148.59,23.2861]
[1642361408027,24.5826,148.67,148.59,23.2861]
[1642361408228,24.5826,148.67,148.59,23.5361]
[1642361408427,24.5826,148.67,148.59,0.25]
[1642361409232,0.20044015,148.63,148.59,0.25]
[1642361409531,0.4008803,148.63,148.58,56.11884149]
[1642361410230,0.4008803,148.63,148.58,79.37084149]
[1642361410631,0.4008803,148.63,148.58,146.54084149]
[1642361412935,0.4008803,148.63,148.58,152.54084149]
[1642361413234,0.4008803,148.63,148.58,85.37084149]
[1642361414239,0.20044015,148.63,148.58,85.37084149]
[1642361414438,24.8326,148.67,148.58,85.37084149]
[1642361414737,0.20044015,148.6,148.58,85.37084149]
[1642361414943,0.20044015,148.6,148.59,6.0613259]
[1642361415343,0.20044015,148.6,148.59,6.3113259]
[1642361416241,0.00044015,148.6,148.59,12.3113259]
[1642361416842,0.00044015,148.6,148.59,119.4813259]
[1642361417545,0.00044015,148.6,148.59,60.3913259]
[1642361417942,0.00044015,148.6,148.59,14.3913259]
[1642361418142,0.00044015,148.6,148.59,20.3913259]
[1642361419642,0.20044015,148.62,148.59,14.3913259]
[1642361419843,24.8326,148.67,148.59,14.3913259]
[1642361420046,0.20044015,148.63,148.59,14.3913259]
[1642361425075,30.8326,148.67,148.59,14.3913259]
[1642361425475,0.20044015,148.63,148.59,14.1413259]
[1642361426976,0.20044015,148.63,148.59,14.3913259]
[1642361430480,30.8326,148.67,148.59,14.3913259]
[1642361430678,0.20044015,148.63,148.59,14.3913259]
[1642361432990,0.20044015,148.63,148.59,8.33]
[1642361435691,44.45552862,148.67,148.59,8.33]
[1642361436093,0.20044015,148.63,148.59,8.33]
[1642361441093,44.20552862,148.67,148.59,8.33]
[1642361441293,0.20044015,148.63,148.59,8.33]
[1642361446398,30.5826,148.67,148.59,8.33]
[1642361446597,0.20044015,148.61,148.59,8.33]
[1642361446798,0.20044015,148.61,148.6,6.0613259]
[1642361447200,0.20044015,148.61,148.6,6.3113259]
[1642361457911,0.20044015,148.61,148.6,31.1965259]
[1642361461739,0.20044015,148.61,148.6,30.9465259]
[1642361463243,0.20044015,148.61,148.6,28.16739997]
[1642361463441,0.20044015,148.61,148.6,31.1965259]
[1642361463945,0.20044015,148.61,148.6,6.0613259]
[1642361464339,0.20044015,148.61,148.6,6.3113259]
[1642361465243,0.20044015,148.61,148.6,3.03219997]
[1642361465440,0.20044015,148.61,148.6,6.3113259]
[1642361466444,0.20044015,148.61,148.6,6.0613259]
[1642361466642,0.20044015,148.61,148.6,3.02912593]
[1642361466844,0.20044015,148.61,148.56,23.3189]
[1642361467043,0.20044015,148.61,148.6,3.03219997]
[1642361467843,0.20044015,148.61,148.6,6.0613259]
[1642361468444,0.20044015,148.61,148.6,6.3113259]
[1642361470148,0.20044015,148.61,148.6,6.0613259]
[1642361471350,0.20044015,148.61,148.6,6.3113259]
[1642361472959,0.20044015,148.61,148.6,49.43668832]
[1642361473354,0.20044015,148.61,148.6,6.0613259]
[1642361473555,0.20044015,148.61,148.55,8.08]
[1642361473754,0.20044015,148.61,148.55,32.8851]
[1642361473955,6.003,148.63,148.55,8.08]
[1642361474156,0.20044015,148.59,148.51,8.08]
[1642361474357,7.32144015,148.59,148.51,8.08]
[1642361474758,7.57144015,148.59,148.51,8.08]
[1642361475156,1.29816972,148.57,148.51,8.08]
[1642361475355,24.78527844,148.56,148.51,8.08]
[1642361475564,33.16227844,148.56,148.51,8.08]
[1642361475958,39.16227844,148.56,148.51,8.08]
[1642361476357,39.16227844,148.56,148.51,8.33]
[1642361476557,39.16227844,148.56,148.51,8.08]
[1642361478091,39.41227844,148.56,148.51,8.08]
[1642361479393,39.41227844,148.56,148.51,8.33]
[1642361479598,0.20044015,148.54,148.51,8.33]
[1642361480194,0.20044015,148.54,148.51,8.08]
[1642361480396,0.20044015,148.54,148.51,8.33]
[1642361480595,0.20044015,148.54,148.52,6.0613259]
[1642361480996,0.20044015,148.54,148.52,3.28219997]
[1642361481195,0.20044015,148.54,148.52,3.03219997]
[1642361481395,0.20044015,148.54,148.47,8.08]
[1642361481695,6.67344015,148.54,148.47,8.08]
[1642361481895,6.92344015,148.54,148.47,14.08]
[1642361482497,8.08738295,148.53,148.47,6.0]
[1642361482998,8.33738295,148.53,148.47,24.9053]
[1642361483197,8.33738295,148.53,148.47,24.6553]
[1642361483400,8.33738295,148.53,148.47,30.6553]
[1642361483997,14.33738295,148.53,148.47,30.6553]
[1642361484396,24.44128295,148.53,148.4,101.8887]
[1642361484600,33.29028295,148.53,148.42,8.08]
[1642361484797,33.29028295,148.53,148.43,22.8638]
[1642361484798,0.20044015,148.48,148.43,22.8638]
[1642361485199,0.20044015,148.48,148.43,29.1138]
[1642361485399,0.20044015,148.48,148.44,36.25563993]
[1642361485798,0.20044015,148.48,148.44,36.50563993]
[1642361488903,0.20044015,148.48,148.43,22.8638]
[1642361489102,8.68444015,148.48,148.4,32.6945]
[1642361489503,8.93444015,148.48,148.4,32.6945]
[1642361489904,8.08738295,148.47,148.41,47.45275268]
[1642361490104,0.20044015,148.44,148.41,47.45275268]
[1642361490505,0.20044015,148.44,148.41,47.70275268]
[1642361491805,0.20044015,148.44,148.42,6.0613259]
[1642361492210,0.20044015,148.44,148.42,6.3113259]
[1642361493205,0.20044015,148.44,148.42,3.27912593]
[1642361493608,0.20044015,148.44,148.42,0.25]
[1642361494508,0.20044015,148.44,148.41,70.63145268]
[1642361495113,65.91145701,148.49,148.41,70.63145268]
[1642361495312,39.2003,148.49,148.41,70.63145268]
[1642361495543,0.20044015,148.45,148.41,70.63145268]
[1642361496714,0.20044015,148.45,148.41,70.38145268]
[1642361498016,0.20044015,148.45,148.41,70.63145268]
[1642361500419,6.624,148.46,148.41,70.63145268]
[1642361500820,0.20044015,148.44,148.41,70.63145268]
[1642361501720,0.20044015,148.44,148.42,3.02912593]
[1642361501922,0.20044015,148.44,148.41,70.63145268]
[1642361502821,0.20044015,148.44,148.42,3.03219997]
[1642361503049,0.20044015,148.44,148.41,70.63145268]
[1642361504222,0.20044015,148.44,148.42,3.02912593]
[1642361504424,0.20044015,148.44,148.41,70.63145268]
[1642361505725,16.3573,148.48,148.41,70.63145268]
[1642361506125,0.20044015,148.44,148.41,70.63145268]
[1642361506623,0.20044015,148.44,148.41,70.38145268]
[1642361511129,36.31139297,148.47,148.41,70.38145268]
[1642361511330,0.20044015,148.44,148.41,70.38145268]
[1642361516434,16.3579,148.47,148.41,70.38145268]
[1642361516634,0.20044015,148.44,148.41,70.38145268]
[1642361516834,0.20044015,148.44,148.42,6.0613259]
[1642361517237,0.20044015,148.44,148.41,70.38145268]
[1642361519961,0.20044015,148.44,148.42,6.0613259]
[1642361520167,0.20044015,148.44,148.41,70.38145268]
[1642361520561,8.08744015,148.44,148.41,70.38145268]
[1642361520960,8.33744015,148.44,148.41,70.38145268]
[1642361521760,7.887,148.44,148.41,70.38145268]
[1642361521962,0.20044015,148.42,148.41,70.38145268]
[1642361522564,0.20044015,148.42,148.41,73.41057861]
[1642361522764,0.20044015,148.42,148.41,76.44277858]
[1642361528475,0.20044015,148.42,148.41,70.38145268]
[1642361528676,0.20044015,148.42,148.41,76.44277858]
[1642361532081,0.00044015,148.42,148.41,28.9900259]
[1642361532279,1.15421446,148.46,148.41,29.2400259]
[1642361532479,7.15421446,148.46,148.41,37.3200259]
[1642361532680,1.89066411,148.48,148.41,37.3200259]
[1642361533082,37.01667801,148.48,148.42,45.29498096]
[1642361533279,31.01667801,148.48,148.42,45.29498096]
[1642361533480,37.01667801,148.48,148.42,45.54498096]
[1642361533680,37.26667801,148.48,148.42,45.54498096]
[1642361534281,37.26667801,148.48,148.42,0.25]
[1642361534689,37.26667801,148.48,148.41,23.1787]
[1642361535282,37.26667801,148.48,148.42,49.84052673]
[1642361535482,37.26667801,148.48,148.42,50.09052673]
[1642361536584,37.26667801,148.48,148.42,0.25]
[1642361536814,37.26667801,148.48,148.41,22.9287]
[1642361536815,47.37387801,148.48,148.41,22.9287]
[1642361537587,47.37387801,148.48,148.41,72.30254436]
[1642361538287,1.89066411,148.47,148.41,72.30254436]
[1642361538489,1.89066411,148.47,148.41,22.9287]
[1642361538688,2.14066411,148.47,148.41,22.9287]
[1642361538888,0.25,148.47,148.41,22.9287]
[1642361539287,0.25,148.47,148.41,23.1787]
[1642361539491,0.25,148.47,148.41,59.29836124]
[1642361539891,49.26454212,148.48,148.41,59.54836124]
[1642361543196,116.43454212,148.48,148.41,22.9287]
[1642361543397,116.43454212,148.48,148.38,1.9192791]
[1642361543598,23.552,148.47,148.38,1.9192791]
[1642361543799,10.1106,148.45,148.38,1.9192791]
[1642361543999,16.0876,148.45,148.38,24.6922791]
[1642361544200,3.12607139,148.44,148.38,1.9192791]
[1642361544422,70.54607139,148.44,148.38,1.9192791]
[1642361544627,70.54607139,148.44,148.35,1.9192791]
[1642361544823,10.1118,148.43,148.35,1.9192791]
[1642361545322,10.3618,148.43,148.35,1.9192791]
[1642361546225,67.17,148.42,148.34,72.81932151]
[1642361546425,10.1133,148.4,148.34,73.06932151]
[1642361546824,10.3633,148.4,148.34,73.06932151]
[1642361547626,16.3633,148.4,148.34,73.06932151]
[1642361550530,16.3633,148.4,148.34,72.81932151]
[1642361552036,23.3673,148.4,148.34,72.81932151]
[1642361554237,2.63336695,148.39,148.34,48.25362151]
[1642361554438,10.1144,148.38,148.34,48.25362151]
[1642361554838,7.004,148.4,148.34,48.25362151]
[1642361555040,1.89066411,148.45,148.34,48.25362151]
[1642361555238,32.09434487,148.45,148.34,48.25362151]
[1642361555437,34.97948801,148.44,148.34,48.25362151]
[1642361555838,24.4491,148.43,148.35,22.904]
[1642361556038,10.1115,148.42,148.35,22.904]
[1642361556238,10.1115,148.42,148.35,23.154]
[1642361556440,16.1115,148.42,148.35,23.154]
[1642361557138,16.1115,148.42,148.35,22.904]
[1642361557339,16.1115,148.42,148.35,23.154]
[1642361557739,16.1115,148.42,148.35,22.904]
[1642361557942,16.1115,148.42,148.35,23.154]
[1642361558341,10.1115,148.42,148.35,23.154]
[1642361558540,1.89066411,148.46,148.37,66.0]
[1642361558742,1.89066411,148.47,148.37,66.0]
[1642361558940,1.89066411,148.47,148.38,32.02594225]
[1642361559140,3.52882862,148.5,148.4,67.17]
[1642361559340,3.52882862,148.5,148.41,8.08]
[1642361559540,43.54050089,148.51,148.42,38.59828632]
[1642361559940,43.54050089,148.51,148.42,46.92828632]
[1642361562043,49.54050089,148.51,148.42,46.92828632]
[1642361562745,49.79050089,148.51,148.42,46.92828632]
[1642361569558,51.49127677,148.51,148.42,38.84828632]
[1642361569958,118.66127677,148.51,148.42,38.84828632]
[1642361571378,61.59687677,148.51,148.42,38.84828632]
[1642361572579,128.76687677,148.51,148.42,38.84828632]
[1642361574382,61.59687677,148.51,148.42,38.84828632]
[1642361574785,128.76687677,148.51,148.42,38.84828632]
[1642361577285,135.79333871,148.51,148.42,38.84828632]
[1642361579287,135.79333871,148.51,148.41,23.9574]
[1642361579487,143.87333871,148.51,148.41,23.9574]
[1642361580188,152.39133871,148.51,148.35,55.7924]
[1642361580388,10.1107,148.46,148.36,67.15110424]
[1642361580591,7.74292927,148.45,148.36,67.15110424]
[1642361580787,9.44370515,148.45,148.36,67.15110424]
[1642361580987,9.69370515,148.45,148.36,67.15110424]
[1642361581488,9.69370515,148.45,148.36,67.40110424]
[1642361581888,9.69370515,148.45,148.36,67.15110424]
[1642361582489,19.80370515,148.45,148.36,67.15110424]
[1642361583493,19.80370515,148.45,148.36,67.40110424]
[1642361585096,18.10292927,148.45,148.36,67.40110424]
[1642361585398,19.80370515,148.45,148.36,67.40110424]
[1642361585997,25.80370515,148.45,148.36,67.40110424]
[1642361589339,24.10292927,148.45,148.36,67.40110424]
[1642361592634,25.80370515,148.45,148.36,67.40110424]
[1642361593034,25.55370515,148.45,148.36,67.40110424]
[1642361594337,25.80370515,148.45,148.36,67.40110424]
[1642361594737,18.06077588,148.45,148.36,67.40110424]
[1642361595037,17.81077588,148.45,148.36,67.40110424]
[1642361595239,1.70077588,148.45,148.36,67.40110424]
[1642361595439,1.70077588,148.48,148.37,8.08]
[1642361595639,24.2341,148.49,148.38,24.2853]
[1642361595838,44.85961754,148.48,148.39,33.6474656]
[1642361596239,50.85961754,148.48,148.4,24.0896]
[1642361596440,50.85961754,148.48,148.4,24.3396]
[1642361597839,51.10961754,148.48,148.4,24.3396]
[1642361598641,45.10961754,148.48,148.4,24.3396]
[1642361599240,52.81039342,148.48,148.4,24.3396]
[1642361599441,62.91789342,148.48,148.4,24.3396]
[1642361600038,56.91789342,148.48,148.4,24.3396]
[1642361600238,62.91789342,148.48,148.4,24.3396]
[1642361604542,62.91789342,148.48,148.4,23.8396]
[1642361605945,61.21711754,148.48,148.4,23.8396]
[1642361606146,55.21711754,148.48,148.4,23.8396]
[1642361607848,55.21711754,148.48,148.4,23.5896]
[1642361608148,55.21711754,148.48,148.4,23.8396]
[1642361609749,61.21711754,148.48,148.4,23.8396]
[1642361612052,61.21711754,148.48,148.4,23.5896]
[1642361612653,128.38711754,148.48,148.4,23.5896]
[1642361614653,7.02912802,148.47,148.4,23.5896]
[1642361614852,17.38752802,148.47,148.4,23.5896]
[1642361618757,23.38752802,148.47,148.4,23.5896]
[1642361627864,23.13752802,148.47,148.4,23.8396]
[1642361629372,23.38752802,148.47,148.4,23.8396]
[1642361630162,16.3584,148.47,148.4,23.8396]
[1642361630668,10.1084,148.47,148.4,23.8396]
[1642361630867,3.52882862,148.48,148.4,23.8396]
[1642361631066,3.52882862,148.48,148.4,99.0896]
[1642361631267,4.61445459,148.49,148.4,31.9196]
[1642361631666,51.56658464,148.49,148.4,31.9196]
[1642361632467,48.03775602,148.49,148.4,31.9196]
[1642361632867,1.08562597,148.49,148.4,31.9196]
[1642361633866,42.1181754,148.49,148.4,31.9196]
[1642361637073,42.1181754,148.49,148.4,37.9196]
[1642361637473,42.1181754,148.49,148.4,31.9196]
[1642361638475,42.1181754,148.49,148.4,31.6696]
[1642361638673,48.3681754,148.49,148.4,31.6696]
[1642361639977,48.3681754,148.49,148.4,31.9196]
[1642361641683,58.4750754,148.49,148.4,31.9196]
[1642361647218,58.4750754,148.49,148.4,31.6696]
[1642361647618,17.44252597,148.49,148.4,31.6696]
[1642361648419,17.44252597,148.49,148.4,31.9196]
[1642361648820,61.52311962,148.49,148.4,31.9196]
[1642361649321,61.52311962,148.49,148.4,31.6696]
[1642361651324,61.52311962,148.49,148.4,31.9196]
[1642361653223,55.52311962,148.49,148.4,31.9196]
[1642361654225,59.05194824,148.49,148.4,31.9196]
[1642361655625,55.52311962,148.49,148.4,31.9196]
[1642361656426,55.52311962,148.49,148.4,31.6696]
[1642361656852,61.52311962,148.49,148.4,31.6696]
[1642361657428,65.05194824,148.49,148.4,31.6696]
[1642361659031,7.33879907,148.48,148.4,31.6696]
[1642361659232,32.33189907,148.48,148.4,31.9196]
[1642361659431,32.58189907,148.48,148.4,31.9196]
[1642361659831,25.2431,148.48,148.4,31.9196]
[1642361660334,31.2431,148.48,148.4,31.9196]
[1642361660532,31.2431,148.48,148.4,31.6696]
[1642361661533,25.2431,148.48,148.4,31.6696]
[1642361662834,31.2431,148.48,148.4,31.6696]
[1642361664136,31.2431,148.48,148.4,31.9196]
[1642361665764,31.2431,148.48,148.39,47.63783052]
[1642361665765,41.3507,148.48,148.39,47.63783052]